fUSD/lending_fUSD_20250629
["ID","MTS","AMOUNT","RATE_DAILY","PERIOD"]
[368492938,1751190761486,-1906.36,0.00030684,3]
[368492939,1751190761497,-850.38,0.00030684,3]
[368492940,1751190761507,-2198.76,0.00030684,3]
[368492941,1751190761516,-1730.15,0.00030684,3]
[368492942,1751190761526,-1477.82,0.00030684,3]
[368492943,1751190761536,-3000.74,0.00030684,3]
[368492944,1751190761546,-495.37,0.00030684,3]
[368492945,1751190761556,-924.29,0.00030684,3]
[368492946,1751190761566,-818.08,0.00030684,3]
[368492947,1751190761576,-1537.71,0.00030684,3]
[368492948,1751190761586,-1894.35,0.00030684,3]
[368492949,1751190761596,-590.95,0.00030684,3]
[368492950,1751190761605,-1565.54,0.00030684,3]
[368492951,1751190761616,-707.33,0.00030684,3]
[368492952,1751190761625,-490.0,0.00030684,3]
[368492953,1751190761635,-854.62,0.00030684,3]
[368492954,1751190761644,-1990.15,0.00030684,3]
[368492955,1751190761654,-2120.63,0.00030684,3]
[368492956,1751190761663,-490.0,0.00030684,3]
[368492957,1751190761673,-501.24,0.00030684,3]
[368492958,1751190761683,-1303.39,0.00030684,3]
[368492959,1751190761692,-490.0,0.00030684,3]
[368492960,1751190761702,-490.0,0.00030684,3]
[368492961,1751190761712,-574.15936212,0.00030684,3]
[368492962,1751190761721,-2057.83,0.00030684,3]
[368492963,1751190761732,-1066.81,0.00030684,3]
[368492964,1751190761741,-1078.53,0.00030684,3]
[368492965,1751190761751,-2549.31,0.00030684,3]
[368492966,1751190761760,-829.05,0.00030684,3]
[368492967,1751190761770,-1514.01,0.00030684,3]
[368492968,1751190761779,-709.69,0.00030684,3]
[368492969,1751190761789,-490.0,0.00030684,3]
[368492970,1751190761798,-1413.24,0.00030684,3]
[368492971,1751190761809,-499.7,0.00030684,3]
[368492972,1751190761818,-490.0,0.00030684,3]
[368492973,1751190761827,-7138.85,0.00030684,3]
[368492974,1751190761837,-1126.76,0.00030684,3]
[368492975,1751190761846,-1903.95,0.00030684,3]
[368492976,1751190761856,-490.0,0.00030684,3]
[368492977,1751190761867,-1687.9,0.00030684,3]
[368492978,1751190761876,-1199.32,0.00030684,3]
[368492979,1751190761886,-605.34,0.00030684,3]
[368492980,1751190761895,-624.57,0.00030684,3]
[368492981,1751190761904,-1080.18,0.00030684,3]
[368492982,1751190761914,-490.0,0.00030684,3]
[368492983,1751190761924,-1902.03,0.00030684,3]
[368492984,1751190761933,-685.5,0.00030684,3]
[368492985,1751190761943,-985.04,0.00030684,3]
[368492986,1751190761953,-809.87,0.00030684,3]
[368492987,1751190761963,-2277.33,0.00030684,3]
[368492988,1751190761972,-3579.22,0.00030684,3]
[368492989,1751190761982,-490.0,0.00030684,3]
[368492990,1751190761992,-1202.94,0.00030684,3]
[368492991,1751190762002,-1406.03,0.00030684,3]
[368492992,1751190762012,-1369.16,0.00030684,3]
[368492993,1751190762022,-2322.41,0.00030684,3]
[368492994,1751190762032,-11425.24,0.00030684,3]
[368492995,1751190762042,-936.2,0.00030684,3]
[368492996,1751190762052,-892.36,0.00030684,3]
[368492997,1751190762062,-7389.77,0.00030684,3]
[368492998,1751190762072,-2363.6,0.00030684,3]
[368492999,1751190762081,-1344.12,0.00030684,3]
[368493000,1751190762090,-490.0,0.00030684,3]
[368493001,1751190762100,-490.0,0.00030684,3]
[368493002,1751190762109,-1010.37,0.00030684,3]
[368493003,1751190762119,-3943.02,0.00030684,3]
[368493004,1751190762128,-719.55,0.00030684,3]
[368493005,1751190762137,-962.36,0.00030684,3]
[368493006,1751190762146,-2127.37,0.00030684,3]
[368493007,1751190762156,-3378.38,0.00030684,3]
[368493008,1751190762440,-1167.04,0.00030684,3]
[368493009,1751190762489,-2325.84,0.00030684,3]
[368493010,1751190762499,-1319.73,0.00030684,3]
[368493011,1751190762509,-509.95,0.00030684,3]
[368493012,1751190762521,-613.68,0.00030684,3]
[368493013,1751190762531,-490.0,0.00030684,3]
[368493014,1751190762540,-2715.66,0.00030684,3]
[368493015,1751190762551,-1294.86,0.00030684,3]
[368493016,1751190762562,-1043.95,0.00030684,3]
[368493017,1751190762576,-1355.41,0.00030684,3]
[368493018,1751190762587,-2207.5,0.00030684,3]
[368493019,1751190762600,-4741.41,0.00030684,3]
[368493020,1751190762613,-545.36,0.00030684,3]
[368493021,1751190762625,-1588.45,0.00030684,3]
[368493022,1751190762639,-490.0,0.00030684,3]
[368493023,1751190762651,-490.0,0.00030684,3]
[368493024,1751190762662,-826.61,0.00030684,3]
[368493025,1751190762676,-3228.0,0.00030684,3]
[368493026,1751190762687,-490.0,0.00030684,3]
[368493027,1751190762699,-886.06,0.00030684,3]
[368493028,1751190762712,-1424.96,0.00030684,3]
[368493029,1751190762724,-9205.97,0.00030684,3]
[368493030,1751190762736,-1170.72,0.00030684,3]
[368493031,1751190762750,-490.0,0.00030684,3]
[368493032,1751190762762,-2306.21,0.00030684,3]
[368493033,1751190762773,-3412.3,0.00030684,3]
[368493034,1751190762784,-728.26,0.00030684,3]
[368493035,1751190762795,-1625.19,0.00030684,3]
[368493036,1751190762806,-490.0,0.00030684,3]
[368493037,1751190762817,-1125.2,0.00030684,3]
[368493038,1751190762828,-736.63,0.00030684,3]
[368493039,1751190762839,-1386.0,0.00030684,3]
[368493040,1751190762851,-1073.8,0.00030684,3]
[368493041,1751190762862,-2006.57,0.00030684,3]
[368493042,1751190762873,-1530.28,0.00030684,3]
[368493043,1751190762884,-490.0,0.00030684,3]
[368493044,1751190762896,-2091.51,0.00030684,3]
[368493045,1751190762908,-2126.77,0.00030684,3]
[368493046,1751190762919,-1779.52,0.00030684,3]
[368493047,1751190762933,-490.0,0.00030684,3]
[368493048,1751190762945,-490.0,0.00030684,3]
[368493049,1751190762959,-1673.45,0.00030684,3]
[368493050,1751190762972,-1303.39,0.00030684,3]
[368493051,1751190762988,-776.8,0.00030684,3]
[368493052,1751190763005,-4507.51,0.00030684,3]
[368493053,1751190763017,-2000.1,0.00030684,3]
[368493054,1751190763029,-490.0,0.00030684,3]
[368493055,1751190763041,-3480.9,0.00030684,3]
[368493056,1751190763054,-1935.08,0.00030684,3]
[368493057,1751190763066,-1632.66,0.00030684,3]
[368493058,1751190763077,-1569.37,0.00030684,3]
[368493059,1751190763090,-2530.56,0.00030684,3]
[368493060,1751190763101,-2452.49,0.00030684,3]
[368493061,1751190763111,-490.0,0.00030684,3]
[368493062,1751190763123,-1489.85,0.00030684,3]
[368493063,1751190763135,-181.02793383,0.00030684,3]
[368493064,1751190763146,-490.0,0.00030684,3]
[368493065,1751190763156,-1193.32,0.00030684,3]
[368493066,1751190763166,-490.0,0.00030684,3]
[368493067,1751190763176,-2419.87,0.00030684,3]
[368493068,1751190763186,-588.25,0.00030684,3]
[368493069,1751190763198,-1993.35,0.00030684,3]
[368493070,1751190763210,-3522.67,0.00030684,3]
[368493071,1751190763222,-1690.76,0.00030684,3]
[368493072,1751190763235,-2018.73,0.00030684,3]
[368493073,1751190763248,-490.0,0.00030684,3]
[368493074,1751190763259,-2069.08,0.00030684,3]
[368493075,1751190763269,-2243.02,0.00030684,3]
[368493076,1751190763281,-490.0,0.00030684,3]
[368493077,1751190763292,-1621.16,0.00030684,3]
[368493078,1751190763303,-288.83502549,0.00030684,3]
[368493079,1751190763313,-2803.72,0.00030684,3]
[368493080,1751190763324,-626.82088424,0.00030684,3]
[368493081,1751190763335,-490.0,0.00030684,3]
[368493082,1751190763346,-1156.58,0.00030684,3]
[368493083,1751190763357,-697.23,0.00030684,3]
[368493084,1751190763368,-490.0,0.00030684,3]
[368493085,1751190763378,-2344.83,0.00030684,3]
[368493086,1751190763389,-896.46,0.00030684,3]
[368493087,1751190763399,-2317.49,0.00030684,3]
[368493088,1751190763409,-490.0,0.00030684,3]
[368493089,1751190763419,-1455.99,0.00030684,3]
[368493090,1751190763429,-2847.6,0.00030684,3]
[368493091,1751190763442,-1697.89,0.00030684,3]
[368493092,1751190763452,-490.0,0.00030684,3]
[368493093,1751190763461,-1196.0,0.00030684,3]
[368493094,1751190763471,-490.0,0.00030684,3]
[368493095,1751190763481,-4069.2,0.00030684,3]
[368493096,1751190763490,-1620.63,0.00030684,3]
[368493097,1751190763500,-24643.72,0.00030684,3]
[368493098,1751190763510,-498.07,0.00030684,3]
[368493099,1751190763519,-499.82,0.00030684,3]
[368493100,1751190763529,-3762.98,0.00030684,3]
[368493101,1751190763539,-1069.72,0.00030684,3]
[368493102,1751190763549,-725.1,0.00030684,3]
[368493103,1751190763559,-4782.64,0.00030684,3]
[368493104,1751190763569,-1100.83,0.00030684,3]
[368493105,1751190763579,-1824.13,0.00030684,3]
[368493106,1751190763589,-2504.1,0.00030684,3]
[368493107,1751190763598,-1607.63,0.00030684,3]
[368493108,1751190763607,-1132.25,0.00030684,3]
[368493109,1751190763617,-11678.75,0.00030684,3]
[368493110,1751190763627,-3607.16,0.00030684,3]
[368493111,1751190763637,-674.39,0.00030684,3]
[368493112,1751190763647,-2388.21,0.00030684,3]
[368493113,1751190763656,-490.0,0.00030684,3]
[368493114,1751190763666,-632.01,0.00030684,3]
[368493115,1751190763675,-3749.55,0.00030684,3]
[368493116,1751190763684,-2478.96,0.00030684,3]
[368493117,1751190763694,-536.71,0.00030684,3]
[368493118,1751190763704,-1798.53,0.00030684,3]
[368493119,1751190763713,-1629.68,0.00030684,3]
[368493120,1751190763723,-3221.5,0.00030684,3]
[368493121,1751190763732,-490.0,0.00030684,3]
[368493122,1751190763742,-1535.71,0.00030684,3]
[368493123,1751190763752,-548.24,0.00030684,3]
[368493124,1751190763762,-2263.99,0.00030684,3]
[368493125,1751190763771,-1677.32,0.00030684,3]
[368493126,1751190763780,-6718.76,0.00030684,3]
[368493127,1751190763790,-1322.58,0.00030684,3]
[368493128,1751190763800,-18559.3,0.00030684,3]
[368493129,1751190763810,-857.93,0.00030684,3]
[368493130,1751190763819,-553.18,0.00030684,3]
[368493131,1751190763828,-490.0,0.00030684,3]
[368493132,1751190763838,-529.85648853,0.00030684,3]
[368493133,1751190763847,-2586.37,0.00030684,3]
[368493134,1751190763856,-1263.2,0.00030684,3]
[368493135,1751190763865,-987.81,0.00030684,3]
[368493136,1751190763874,-698.11,0.00030684,3]
[368493137,1751190763883,-3862.63,0.00030684,3]
[368493138,1751190763893,-826.74,0.00030684,3]
[368493139,1751190763902,-490.0,0.00030684,3]
[368493140,1751190763912,-1943.16,0.00030684,3]
[368493141,1751190763922,-490.0,0.00030684,3]
[368493142,1751190763932,-4122.27,0.00030684,3]
[368493143,1751190763941,-490.0,0.00030684,3]
[368493144,1751190763951,-490.0,0.00030684,3]
[368493145,1751190763961,-490.0,0.00030684,3]
[368493146,1751190763970,-490.0,0.00030684,3]
[368493147,1751190763979,-1385.92,0.00030684,3]
[368493148,1751190763989,-1552.69,0.00030684,3]
[368493149,1751190763999,-5320.1,0.00030684,3]
[368493150,1751190764009,-490.0,0.00030684,3]
[368493151,1751190764018,-2723.89,0.00030684,3]
[368493152,1751190764027,-4529.09,0.00030684,3]
[368493153,1751190764036,-620.43,0.00030684,3]
[368493154,1751190764046,-1307.14,0.00030684,3]
[368493155,1751190764056,-2347.57,0.00030684,3]
[368493156,1751190764066,-2896.25,0.00030684,3]
[368493157,1751190764076,-1874.39,0.00030684,3]
[368493158,1751190764086,-2024.74,0.00030684,3]
[368493159,1751190764096,-919.31,0.00030684,3]
[368493160,1751190764106,-5682.59,0.00030684,3]
[368493161,1751190764116,-490.0,0.00030684,3]
[368493162,1751190764126,-2104.31,0.00030684,3]
[368493163,1751190764137,-626.13,0.00030684,3]
[368493164,1751190764147,-1968.64,0.00030684,3]
[368493165,1751190764157,-2133.2,0.00030684,3]
[368493166,1751190764167,-1770.11,0.00030684,3]
[368493167,1751190764176,-1764.06,0.00030684,3]
[368493168,1751190764188,-700.52,0.00030684,3]
[368493169,1751190764198,-1730.13,0.00030684,3]
[368493170,1751190764208,-490.0,0.00030684,3]
[368493171,1751190764218,-2165.68,0.00030684,3]
[368493172,1751190764228,-883.4,0.00030684,3]
[368493173,1751190764238,-513.72,0.00030684,3]
[368493174,1751190764249,-1926.75,0.00030684,3]
[368493175,1751190764258,-5921.12,0.00030684,3]
[368493176,1751190764268,-490.0,0.00030684,3]
[368493177,1751190764277,-2141.99,0.00030684,3]
[368493178,1751190764287,-490.0,0.00030684,3]
[368493179,1751190764296,-2043.04,0.00030684,3]
[368493180,1751190764307,-631.01,0.00030684,3]
[368493181,1751190764317,-855.58,0.00030684,3]
[368493182,1751190764327,-696.89,0.00030684,3]
[368493183,1751190764336,-1625.9,0.00030684,3]
[368493184,1751190764347,-3241.41,0.00030684,3]
[368493185,1751190764358,-3866.16,0.00030684,3]
[368493186,1751190764367,-2087.25,0.00030684,3]
[368493187,1751190764377,-1891.34,0.00030684,3]
[368493188,1751190764387,-4543.11,0.00030684,3]
[368493189,1751190764396,-569.82,0.00030684,3]
[368493190,1751190764407,-1931.12,0.00030684,3]
[368493191,1751190764417,-490.0,0.00030684,3]
[368493192,1751190764428,-1948.57,0.00030684,3]
[368493193,1751190764439,-1323.16,0.00030684,3]
[368493194,1751190764448,-971.22,0.00030684,3]
[368493195,1751190764457,-6890.33,0.00030684,3]
[368493196,1751190764467,-490.0,0.00030684,3]
[368493197,1751190764478,-961.28,0.00030684,3]
[368493198,1751190764487,-1740.09,0.00030684,3]
[368493199,1751190764498,-1509.17,0.00030684,3]
[368493200,1751190764508,-584.07235068,0.00030684,3]
[368493201,1751190764521,-2526.68,0.00030684,3]
[368493202,1751190764533,-1923.32,0.00030684,3]
[368493203,1751190764543,-802.0,0.00030685,3]
[368493204,1751190764554,-500.0,0.00030685,3]
[368493205,1751190764563,-500.0,0.00030685,3]
[368493206,1751190764572,-453.0,0.00030685,3]
[368493207,1751190764582,-150.0,0.0003069,7]
[368493208,1751190764592,-150.0,0.00030704,7]
[368493209,1751190764603,-150.0,0.0003073,7]
[368493210,1751190764612,-150.0,0.0003074,2]
[368493211,1751190764622,-312.68872601,0.00030742,7]
[368493212,1751190764632,-294.80816015,0.00030742,7]
[368493213,1751190764641,-168.0,0.00030749,2]
[368493214,1751190764651,-150.0,0.00030751,7]
[368493215,1751190764661,-150.0,0.00030756,7]
[368493216,1751190764671,-150.0,0.00030796,7]
[368493217,1751190764680,-150.0,0.00030802,7]
[368493218,1751190764690,-312.68872601,0.00030808,7]
[368493219,1751190764700,-294.80816015,0.00030808,7]
[368493220,1751190764709,-150.0,0.00030811,7]
[368493221,1751190764721,-150.0,0.00030829,7]
[368493222,1751190764730,-2043.46130184,0.00030831,23]
[368493223,1751190764740,-150.0,0.00030837,7]
[368493224,1751190764752,-312.68872601,0.00030875,7]
[368493225,1751190764762,-294.80816015,0.00030875,7]
[368493226,1751190764772,-150.0,0.00030891,7]
[368493227,1751190764781,-1000.0,0.00030899,2]
[368493228,1751190764790,-1000.0,0.00030899,2]
[368493229,1751190764800,-1000.0,0.00030899,2]
[368493230,1751190764809,-1000.0,0.00030899,2]
[368493231,1751190764819,-1000.0,0.00030899,2]
[368493232,1751190764829,-150.0,0.000309,7]
[368493233,1751190764840,-150.0,0.00030922,7]
[368493234,1751190764850,-150.0,0.00030925,7]
[368493235,1751190764860,-312.68872601,0.00030941,7]
[368493236,1751190764871,-294.80816015,0.00030941,7]
[368493237,1751190764880,-318.0,0.00030951,2]
[368493238,1751190764890,-1528.36,0.00030958,9]
[368493239,1751190764899,-600.46,0.00030958,3]
[368493240,1751190764910,-542.33,0.00030958,3]
[368493241,1751190764920,-847.37,0.00030958,3]
[368493242,1751190764931,-490.0,0.00030958,3]
[368493243,1751190764941,-490.0,0.00030958,3]
[368493244,1751190764950,-490.0,0.00030958,3]
[368493245,1751190764960,-490.0,0.00030958,3]
[368493246,1751190764970,-490.0,0.00030958,3]
[368493247,1751190764980,-948.9,0.00030958,3]
[368493248,1751190764990,-667.1,0.00030958,3]
[368493249,1751190765001,-513.09,0.00030958,3]
[368493250,1751190765011,-978.74,0.00030958,3]
[368493251,1751190765020,-642.29,0.00030958,3]
[368493252,1751190765030,-198.13594409,0.00030958,3]
[368493253,1751190765141,-490.0,0.00030958,3]
[368493254,1751190765150,-490.0,0.00030958,3]
[368493255,1751190765159,-1186.44,0.00030958,3]
[368493256,1751190765168,-490.0,0.00030958,3]
[368493257,1751190765178,-490.0,0.00030958,3]
[368493258,1751190765188,-2554.302964,0.00030958,3]
[368493259,1751190765197,-490.0,0.00030958,3]
[368493260,1751190765207,-853.16,0.00030958,3]
[368493261,1751190765216,-212.13691706,0.00030958,3]
[368493262,1751190765224,-2816.157543,0.00030958,3]
[368493263,1751190765234,-413.09487123,0.00030958,3]
[368493264,1751190765244,-563.70289075,0.00030958,3]
[368493265,1751190765253,-2200.380726,0.00030958,3]
[368493266,1751190765262,-151.959343,0.00030958,3]
[368493267,1751190765271,-392.680419,0.00030958,3]
[368493268,1751190765280,-500.85,0.00030958,3]
[368493269,1751190765289,-490.0,0.00030958,3]
[368493270,1751190765298,-887.72,0.00030958,3]
[368493271,1751190765307,-215.41530898,0.00030958,3]
[368493272,1751190765316,-153.102854,0.00030958,3]
[368493273,1751190765326,-556.18,0.00030958,3]
[368493274,1751190765336,-656.47,0.00030958,3]
[368493275,1751190765346,-571.97,0.00030958,3]
[368493276,1751190765355,-490.0,0.00030958,3]
[368493277,1751190765364,-266.25871473,0.00030958,3]
[368493278,1751190765373,-858.42,0.00030958,3]
[368493279,1751190765382,-490.0,0.00030958,3]
[368493280,1751190765391,-648.74,0.00030958,3]
[368493281,1751190765401,-1167.71,0.00030958,3]
[368493282,1751190765410,-490.0,0.00030958,3]
[368493283,1751190765419,-167.777922,0.00030958,3]
[368493284,1751190765428,-642.42,0.00030958,3]
[368493285,1751190765438,-523.68,0.00030958,3]
[368493286,1751190765448,-490.0,0.00030958,3]
[368493287,1751190765460,-169.16211917,0.00030958,3]
[368493288,1751190765470,-625.75,0.00030958,3]
[368493289,1751190765480,-490.0,0.00030958,3]
[368493290,1751190765490,-490.0,0.00030958,3]
[368493291,1751190765500,-490.0,0.00030958,3]
[368493292,1751190765509,-490.0,0.00030958,3]
[368493293,1751190765519,-1529.36,0.00030958,3]
[368493294,1751190765530,-171.68794925,0.00030958,3]
[368493295,1751190765539,-725.47,0.00030958,3]
[368493296,1751190765549,-167.777922,0.00030958,3]
[368493297,1751190765558,-246.80799201,0.00030958,3]
[368493298,1751190765568,-490.0,0.00030958,3]
[368493299,1751190765578,-246.54041369,0.00030958,3]
[368493300,1751190765587,-1837.93,0.00030958,3]
[368493301,1751190765596,-490.0,0.00030958,3]
[368493302,1751190765606,-961.81,0.00030958,3]
[368493303,1751190765615,-677.59,0.00030958,3]
[368493304,1751190765624,-490.0,0.00030958,3]
[368493305,1751190765634,-490.0,0.00030958,3]
[368493306,1751190765644,-490.0,0.00030958,3]
[368493307,1751190765653,-811.6,0.00030958,3]
[368493308,1751190765662,-701.76,0.00030958,3]
[368493309,1751190765672,-490.0,0.00030958,3]
[368493310,1751190765681,-801.55,0.00030958,3]
[368493311,1751190765691,-490.0,0.00030958,3]
[368493312,1751190765700,-493.56,0.00030958,3]
[368493313,1751190765709,-490.0,0.00030958,3]
[368493314,1751190765718,-590.68,0.00030958,3]
[368493315,1751190765728,-490.0,0.00030958,3]
[368493316,1751190765737,-490.0,0.00030958,3]
[368493317,1751190765746,-490.0,0.00030958,3]
[368493318,1751190765756,-740.41,0.00030958,3]
[368493319,1751190765766,-930.82,0.00030958,3]
[368493320,1751190765776,-1134.82,0.00030958,3]
[368493321,1751190765786,-629.08,0.00030958,3]
[368493322,1751190765795,-507.56,0.00030958,3]
[368493323,1751190765805,-508.09,0.00030958,3]
[368493324,1751190765816,-1395.58,0.00030958,3]
[368493325,1751190765825,-596.83,0.00030958,3]
[368493326,1751190765835,-516.57,0.00030958,3]
[368493327,1751190765844,-1527.96,0.00030958,3]
[368493328,1751190765853,-2015.14,0.00030958,3]
[368493329,1751190765863,-490.0,0.00030958,3]
[368493330,1751190765873,-615.0,0.00030958,3]
[368493331,1751190765882,-490.0,0.00030958,3]
[368493332,1751190765891,-889.47,0.00030958,3]
[368493333,1751190765901,-2302.9,0.00030958,3]
[368493334,1751190765911,-945.27,0.00030958,3]
[368493335,1751190765920,-743.01,0.00030958,3]
[368493336,1751190765930,-643.27,0.00030958,3]
[368493337,1751190765941,-1940.61,0.00030958,3]
[368493338,1751190765951,-1952.95,0.00030958,3]
[368493339,1751190765961,-1201.96,0.00030958,3]
[368493340,1751190765970,-1310.06,0.00030958,3]
[368493341,1751190765979,-369.84,0.00030958,3]
[368493342,1751190765988,-1125.22,0.00030958,3]
[368493343,1751190765999,-1224.35,0.00030958,3]
[368493344,1751190766009,-490.0,0.00030958,3]
[368493345,1751190766019,-532.14186917,0.00030958,3]
[368493346,1751190766029,-976.06,0.00030958,3]
[368493347,1751190766038,-749.58,0.00030958,3]
[368493348,1751190766050,-1824.88,0.00030958,3]
[368493349,1751190766060,-603.75,0.00030958,3]
[368493350,1751190766069,-957.88,0.00030958,3]
[368493351,1751190766078,-490.0,0.00030958,3]
[368493352,1751190766087,-490.0,0.00030958,3]
[368493353,1751190766097,-490.0,0.00030958,3]
[368493354,1751190766106,-538.77,0.00030958,3]
[368493355,1751190766116,-776.78,0.00030958,3]
[368493356,1751190766125,-960.82,0.00030958,3]
[368493357,1751190766135,-894.84,0.00030958,3]
[368493358,1751190766145,-490.0,0.00030958,3]
[368493359,1751190766154,-490.0,0.00030958,3]
[368493360,1751190766164,-1904.77,0.00030958,3]
[368493361,1751190766174,-490.0,0.00030958,3]
[368493362,1751190766183,-1462.39,0.00030958,3]
[368493363,1751190766193,-2300.89,0.00030958,3]
[368493364,1751190766203,-490.0,0.00030958,3]
[368493365,1751190766213,-650.78,0.00030958,3]
[368493366,1751190766223,-2228.41,0.00030958,3]
[368493367,1751190766233,-694.52,0.00030958,3]
[368493368,1751190766242,-490.0,0.00030958,3]
[368493369,1751190766251,-490.0,0.00030958,3]
[368493370,1751190766260,-1649.19,0.00030958,3]
[368493371,1751190766269,-2026.94,0.00030958,3]
[368493372,1751190766278,-490.0,0.00030958,3]
[368493373,1751190766289,-843.7,0.00030958,3]
[368493374,1751190766298,-490.0,0.00030958,3]
[368493375,1751190766307,-490.0,0.00030958,3]
[368493376,1751190766317,-490.0,0.00030958,3]
[368493377,1751190766326,-490.0,0.00030958,3]
[368493378,1751190766335,-571.61,0.00030958,3]
[368493379,1751190766344,-1556.08,0.00030958,3]
[368493380,1751190766354,-896.97,0.00030958,3]
[368493381,1751190766364,-490.0,0.00030958,3]
[368493382,1751190766373,-594.67,0.00030958,3]
[368493383,1751190766383,-1147.84,0.00030958,3]
[368493384,1751190766393,-1027.62,0.00030958,3]
[368493385,1751190766402,-707.16,0.00030958,3]
[368493386,1751190766411,-880.72,0.00030958,3]
[368493387,1751190766420,-490.0,0.00030958,3]
[368493388,1751190766430,-792.35,0.00030958,3]
[368493389,1751190766446,-490.0,0.00030958,3]
[368493390,1751190766457,-576.14556636,0.00030958,3]
[368493391,1751190766467,-780.47,0.00030958,3]
[368493392,1751190766476,-560.33,0.00030958,3]
[368493393,1751190766487,-944.59,0.00030958,3]
[368493394,1751190766496,-1653.81,0.00030958,3]
[368493395,1751190766506,-525.19,0.00030958,3]
[368493396,1751190766518,-1620.77,0.00030958,3]
[368493397,1751190766528,-1900.77,0.00030958,3]
[368493398,1751190766537,-490.0,0.00030958,3]
[368493399,1751190766547,-521.24,0.00030958,3]
[368493400,1751190766557,-1487.61,0.00030958,3]
[368493401,1751190766567,-1556.78,0.00030958,3]
[368493402,1751190766576,-1633.03,0.00030958,3]
[368493403,1751190766586,-1046.71,0.00030958,3]
[368493404,1751190766595,-506.3,0.00030958,3]
[368493405,1751190766605,-514.5,0.00030958,3]
[368493406,1751190766614,-1936.24,0.00030958,3]
[368493407,1751190766624,-490.0,0.00030958,3]
[368493408,1751190766634,-2262.43,0.00030958,3]
[368493409,1751190766643,-665.95,0.00030958,3]
[368493410,1751190766652,-2474.6,0.00030958,3]
[368493411,1751190766662,-1268.88,0.00030958,3]
[368493412,1751190766671,-616.38576534,0.00030958,3]
[368493413,1751190766681,-689.16,0.00030958,3]
[368493414,1751190766690,-1400.07,0.00030958,3]
[368493415,1751190766700,-858.86,0.00030958,3]
[368493416,1751190766710,-730.59,0.00030958,3]
[368493417,1751190766719,-1700.28,0.00030958,3]
[368493418,1751190766729,-666.33,0.00030958,3]
[368493419,1751190766739,-818.45,0.00030958,3]
[368493420,1751190766748,-1024.15,0.00030958,3]
[368493421,1751190766758,-709.17,0.00030958,3]
[368493422,1751190766767,-1027.52,0.00030958,3]
[368493423,1751190766777,-2038.87,0.00030958,3]
[368493424,1751190766788,-490.0,0.00030958,3]
[368493425,1751190766798,-534.02,0.00030958,3]
[368493426,1751190766807,-2394.84,0.00030958,3]
[368493427,1751190766817,-490.0,0.00030958,3]
[368493428,1751190766827,-1561.51,0.00030958,3]
[368493429,1751190766836,-1167.05,0.00030958,3]
[368493430,1751190766846,-899.19,0.00030958,3]
[368493431,1751190766855,-935.31,0.00030958,3]
[368493432,1751190766864,-771.06,0.00030958,3]
[368493433,1751190766873,-610.33,0.00030958,3]
[368493434,1751190766883,-490.0,0.00030958,3]
[368493435,1751190766893,-1503.84,0.00030958,3]
[368493436,1751190766903,-1626.28,0.00030958,3]
[368493437,1751190766912,-566.4,0.00030958,3]